fUSD/lending_fUSD_20260308
["ID","MTS","AMOUNT","RATE_DAILY","PERIOD"]
[407985686,1772971840500,-2367.7736084,0.00017663,2]
[407985687,1772971840510,-4439.15302076,0.00017665,2]
[407985688,1772971840519,-403.0,0.000177,5]
[407985689,1772971840529,-3292.0,0.00017738,2]
[407985690,1772971840538,-313.0,0.00017779,2]
[407985691,1772971840552,-151.81,0.000179,2]
[407985692,1772971840562,-1860.05864562,0.00018,5]
[407985693,1772971840571,-3067.55173912,0.00018,7]
[407985694,1772971840580,-65594.12178865,0.00018,2]
[407985695,1772971840589,-308.71489889,0.00018,2]
[407985696,1772971840599,-1002.71298774,0.00018,2]
[407985697,1772971840608,-1000.0,0.00018068,2]
[407985698,1772971840617,-1500.0,0.00018068,2]
[407985699,1772971840626,-285.42431869,0.00018068,2]
[407985700,1772971840636,-1234.26485783,0.0001815,2]
[407985701,1772971840645,-2367.7736084,0.00018222,2]
[407985702,1772971840655,-4439.15302076,0.00018224,2]
[407985703,1772971840664,-336.66,0.00018566,2]
[407985704,1772971840674,-1649.86978781,0.00018616,2]
[407985705,1772971840683,-151.81,0.0001868,2]
[407985706,1772971840692,-317.0,0.00018735,2]
[407985707,1772971840701,-2367.7736084,0.00018781,2]
[407985708,1772971840710,-4439.15302076,0.00018783,2]
[407985709,1772971840719,-2000.0,0.0001886,2]
[407985710,1772971840729,-500.0,0.00018999,2]
[407985711,1772971840738,-693.3919763,0.00018999,2]
[407985712,1772971840746,-174.61919141,0.00018999,2]
[407985713,1772971840756,-500.0,0.00018999,2]
[407985714,1772971840766,-500.0,0.00018999,2]
[407985715,1772971840774,-500.0,0.00018999,2]
[407985716,1772971840784,-500.0,0.00018999,2]
[407985717,1772971840793,-500.0,0.00018999,2]
[407985718,1772971840802,-500.0,0.00018999,2]
[407985719,1772971840811,-500.0,0.00018999,2]
[407985720,1772971840819,-500.0,0.00018999,2]
[407985721,1772971840828,-500.0,0.00018999,2]
[407985722,1772971840837,-500.0,0.00018999,2]
[407985723,1772971840847,-500.0,0.00018999,2]
[407985724,1772971840855,-301.40781056,0.00019,5]
[407985725,1772971840865,-500.0,0.00019,5]
[407985726,1772971840874,-613.73590573,0.00019,2]
[407985727,1772971840883,-308.76566959,0.00019,2]
[407985728,1772971840892,-1234.26485783,0.00019025,2]
[407985729,1772971840901,-719.04747942,0.00019054,2]
[407985730,1772971840910,-160.0,0.00019073,2]
[407985731,1772971840919,-745.65223616,0.00019109,2]
[407985732,1772971840928,-773.2413689,0.00019164,2]
[407985733,1772971840938,-2000.0,0.000192,2]
[407985734,1772971840947,-458.87,0.00019206,2]
[407985735,1772971840956,-801.85129955,0.00019219,2]
[407985736,1772971840965,-831.51979763,0.00019274,2]
[407985737,1772971840973,-862.28603014,0.00019329,2]
[407985738,1772971840983,-2367.7736084,0.00019341,2]
[407985739,1772971840991,-4439.15302076,0.00019341,2]
[407985740,1772971841000,-894.19061326,0.00019384,2]
[407985741,1772971841010,-927.27566595,0.00019439,2]
[407985742,1772971841019,-151.81,0.0001946,2]
[407985743,1772971841028,-208.0,0.00019475,2]
[407985744,1772971841038,-961.58486559,0.00019494,2]
[407985745,1772971841047,-1774.368,0.000195,2]
[407985746,1772971841056,-3680.0,0.00019512,2]
[407985747,1772971841064,-181.08010149,0.00019547,2]
[407985748,1772971841073,-997.16350561,0.00019549,2]
[407985749,1772971841082,-1224.02057257,0.000196,2]
[407985750,1772971841093,-1000.0,0.00019689,2]
[407985751,1772971841106,-3079.32,0.00019726,2]
[407985752,1772971841116,-3079.32,0.00019726,2]
[407985753,1772971841124,-3079.32,0.00019726,2]
[407985754,1772971841135,-1979.57,0.00019726,2]
[407985755,1772971841143,-1979.56,0.00019726,2]
[407985756,1772971841152,-239.71698079,0.00019785,2]
[407985757,1772971841161,-500.0,0.00019799,2]
[407985758,1772971841171,-500.0,0.00019799,2]
[407985759,1772971841180,-500.0,0.00019799,2]
[407985760,1772971841189,-500.0,0.00019799,2]
[407985761,1772971841198,-500.0,0.00019799,2]
[407985762,1772971841208,-2000.0,0.000198,2]
[407985763,1772971841217,-1741.96185551,0.000199,2]
[407985764,1772971841226,-10000.0,0.000199,2]
[407985765,1772971841235,-178.29431271,0.000199,2]
[407985766,1772971841244,-234.10204464,0.000199,2]
[407985767,1772971841253,-2367.7736084,0.000199,2]
[407985768,1772971841262,-4439.15302076,0.000199,2]
[407985769,1772971841271,-181.785987,0.000199,2]
[407985770,1772971841280,-150.0,0.000199,2]
[407985771,1772971841290,-1234.26485783,0.000199,2]
[407985772,1772971841300,-4661.0,0.000199,2]
[407985773,1772971841309,-500.0,0.00019973,2]
[407985774,1772971841317,-500.0,0.00019973,2]
[407985775,1772971841326,-500.0,0.00019973,2]
[407985776,1772971841336,-150.0,0.00019979,2]
[407985777,1772971841345,-551.23395292,0.0001998,2]
[407985778,1772971841354,-576.25224444,0.0001999,2]
[407985779,1772971841363,-576.25224444,0.0001999,2]
[407985780,1772971841372,-151.0,0.00019997,2]
[407985781,1772971841382,-310.89756555,0.00019999,2]
[407985782,1772971841391,-300.0,0.00019999,2]
[407985783,1772971841400,-300.0,0.00019999,2]
[407985784,1772971841409,-666.0,0.00019999,2]
[407985785,1772971841418,-150.0,0.00019999,2]
[407985786,1772971841427,-215.40583698,0.00019999,2]
[407985787,1772971841436,-3309682.21672483,0.0002,2]
[407985788,1772971841616,-7028.29999999,0.0002,2]
[407985789,1772971841629,-1796.30614592,0.0002,2]
[407985790,1772971841642,-1091.12792119,0.0002,2]
[407985791,1772971841654,-656.39703914,0.0002,2]
[407985792,1772971841664,-407.55182419,0.0002,2]
[407985793,1772971841678,-1724.19451214,0.0002,2]
[407985794,1772971841774,-774.6985844,0.0002,2]
[407985795,1772971841785,-3576366.18769198,0.0002,2]
[407985796,1772971841795,-25711.51342928,0.0002,2]
[407985797,1772971841804,-839081.23288777,0.0002,2]
[407985804,1772971842937,-2723.35186212,0.0002,2]
[407985805,1772971843046,-5893.79135114,0.0002,2]
[407985811,1772971845748,-324.05020339,0.0002,2]
[407985812,1772971845857,-274.54973076,0.0002,2]
[407985813,1772971845868,-426.0,0.0002,2]
[407985814,1772971845912,-1844.10487435,0.0002,2]
[407985819,1772971942554,500.0,8e-05,2]
[407985826,1772972290048,437.26,6.63e-05,2]
[407985827,1772972290444,437.26,6.979e-05,2]
[407985828,1772972290645,437.26,7.327e-05,2]
[407985829,1772972290860,437.26,7.676e-05,2]
[407985830,1772972291058,437.26,8.025e-05,2]
[407985831,1772972291260,437.26,8.374e-05,2]
[407985832,1772972291514,437.26,8.723e-05,2]
[407985833,1772972291715,437.26,9.072e-05,2]
[407985834,1772972291905,437.26,9.421e-05,2]
[407985835,1772972292119,437.26,9.77e-05,2]
[407985836,1772972292328,437.26,0.00010119,2]
[407985837,1772972292538,437.26,0.00010468,2]
[407985838,1772972292737,437.26,0.00010817,2]
[407985839,1772972292934,437.26,0.00011166,2]
[407985841,1772972507654,-437.26,0.00011515,2]
[407985842,1772972507678,-244.0,0.00011515,2]
[407985843,1772972507699,-437.26,0.00011864,2]
[407985844,1772972507720,-166.66,0.00011921,2]
[407985845,1772972507740,-166.66,0.00012172,2]
[407985846,1772972507761,-437.26,0.00012212,2]
[407985847,1772972507781,-110.9,0.00012366,2]
[407985848,1772972509293,-389.1,0.00012366,2]
[407985849,1772972509319,-166.66,0.00012423,2]
[407985850,1772972509341,-437.26,0.00012561,2]
[407985851,1772972509364,-200.0,0.00012583,2]
[407985852,1772972509389,-300.0,0.00012665,2]
[407985853,1772972509410,-300.0,0.00012665,2]
[407985854,1772972509431,-206.98,0.00012666,2]
[407985855,1772972509730,-2000.0,0.00012666,2]
[407985856,1772972510095,-738.37526313,0.00012666,2]
[407985857,1772972510116,-600.76717863,0.00012666,2]
[407985858,1772972510137,-166.66,0.00012674,2]
[407985859,1772972510158,-494.19755824,0.00012808,2]
[407985860,1772972510559,-1290.50244176,0.00012808,2]
[407985861,1772972510583,-437.26,0.0001291,2]
[407985862,1772972510604,-166.66,0.00012925,2]
[407985863,1772972510625,-105.57755824,0.00013127,2]
[407985864,1772972510891,-1767.34,0.00012443,2]
[407985865,1772972510913,-232.66,0.00013127,2]
[407985866,1772972511208,-861.76244176,0.00013127,2]
[407985867,1772972511229,-1138.23755824,0.00013128,2]
[407985868,1772972511657,-646.46244176,0.00013128,2]
[407985869,1772972511679,-166.66,0.00013176,2]
[407985870,1772972511711,-437.26,0.00013259,2]
[407985871,1772972511732,-187.0,0.00013291,2]
[407985872,1772972511752,-222.47487,0.00013396,2]
[407985873,1772972511774,-300.0,0.00013408,2]
[407985874,1772972511795,-40.14268824,0.00013409,2]
[407985875,1772972512135,-2000.0,0.00013409,2]
[407985876,1772972512448,-2000.0,0.00013409,2]
[407985877,1772972513714,-959.85731176,0.00013409,2]
[407985878,1772972513736,-193.0,0.00013422,2]
[407985879,1772972513756,-250.0,0.00013448,2]
[407985880,1772972513777,-150.0,0.00013448,2]
[407985881,1772972513797,-447.14268824,0.00013449,2]
[407985884,1772972514483,-1337.55731176,0.00013449,2]
[407985885,1772972514504,-662.44268824,0.00013467,2]
[407985886,1772972515560,-535.55731176,0.00013467,2]
[407985887,1772972515582,-1464.44268824,0.00013468,2]
[407985888,1772972516689,-1502.11802948,0.00013468,2]
[407985889,1772972516711,-154.59418699,0.000135,2]
[407985890,1772972516732,-343.28778353,0.00013573,2]
[407985893,1772972522265,-194.28443274,0.00013573,2]
[407985894,1772972522289,-305.71556726,0.00013573,2]
[407986079,1772973031936,-152.8,0.00012764,2]
[407986080,1772973031946,-255.0,0.00012764,2]
[407986081,1772973031956,-353.07408918,0.00012794,2]
[407986082,1772973031966,-161.89893875,0.00012825,2]
[407986083,1772973031975,-161.89893874,0.00012875,2]
[407986084,1772973031985,-123.16893357,0.00012914,2]
[407986085,1772973031996,-260.99922939,0.00012914,2]
[407986086,1772973032006,-161.89893874,0.00012924,2]
[407986087,1772973032015,-1200.0,0.00012924,2]
[407986088,1772973032024,-300.0,0.00012924,2]
[407986089,1772973032034,-300.0,0.00012924,2]
[407986090,1772973032044,-54894.93921219,0.00012924,2]
[407986091,1772973032057,-17852.38065188,0.00012924,2]
[407986092,1772973032068,-76653.25745264,0.00012924,2]
[407986093,1772973032080,-1380.09438079,0.00012924,2]
[407986094,1772973032091,-387.11639996,0.00012924,2]
[407986095,1772973032104,-2898.9649607,0.00012924,2]
[407986096,1772973032116,-2045.82122444,0.00012924,2]
[407986097,1772973032127,-1136.08430211,0.00012924,2]
[407986098,1772973032138,-795.683759,0.00012924,2]
[407986099,1772973032149,-404.57355337,0.00012924,2]
[407986106,1772973037962,-1000.18778537,0.00012924,2]
[407986108,1772973037974,-865.69,0.00012924,2]
[407986109,1772973038017,-710.99987036,0.00012924,2]
[407986110,1772973038028,-1401.9124575,0.00012924,2]
[407986111,1772973038039,-7077.01967299,0.00012924,2]
[407986112,1772973038050,-1057.47540344,0.00012924,2]
[407986113,1772973038083,-671.07308538,0.00012924,2]
[407986114,1772973038094,-334.705,0.00012924,2]
[407986115,1772973038105,-396.41259052,0.00012924,2]
[407986116,1772973038116,-2328035.60823736,0.00012924,2]
[407986117,1772973038126,-6926.13768503,0.00012925,2]
[407986118,1772973038135,-1673.25379179,0.00012925,2]
[407986119,1772973038144,-6862.37287399,0.00012925,2]
[407986120,1772973038157,-309.16,0.00012986,2]
[407986121,1772973038167,-200.0,0.00013007,2]
[407986122,1772973038176,-150.0,0.00013023,2]
[407986123,1772973038185,-1000.0,0.00013023,2]
[407986124,1772973038196,-542.59073283,0.00013023,2]
[407986125,1772973038207,-500.0,0.00013024,2]
[407986126,1772973038216,-500.0,0.00013024,2]
[407986127,1772973038225,-708.34737485,0.00013024,2]
[407986128,1772973038235,-500.0,0.00013024,2]
[407986129,1772973038244,-500.0,0.00013024,2]
[407986130,1772973038253,-500.0,0.00013024,2]
[407986131,1772973038262,-500.0,0.00013024,2]
[407986132,1772973038271,-708.34737485,0.00013024,2]
[407986133,1772973038283,-500.0,0.00013024,2]
[407986134,1772973038292,-500.0,0.00013024,2]
[407986135,1772973038302,-500.0,0.00013024,2]
[407986137,1772973038311,-273.51966372,0.00013024,2]
[407986138,1772973038320,-500.0,0.00013024,2]
[407986140,1772973038330,-307.32786179,0.00013024,2]
[407986142,1772973038339,-408.2407493,0.00013024,2]
[407986145,1772973038352,-708.34737485,0.00013024,2]
[407986147,1772973038361,-291.64001578,0.00013024,2]
[407986150,1772973038370,-500.0,0.00013024,2]
[407986153,1772973038379,-708.34737485,0.00013024,2]
[407986155,1772973038388,-212.79771969,0.00013024,2]
[407986157,1772973038397,-500.0,0.00013024,2]
[407986159,1772973038406,-500.0,0.00013024,2]
[407986161,1772973038415,-708.34737485,0.00013024,2]
[407986163,1772973038424,-708.34737485,0.00013024,2]
[407986165,1772973038438,-289.46451227,0.00013024,2]
[407986166,1772973038447,-708.34737485,0.00013024,2]
[407986167,1772973038457,-500.0,0.00013024,2]
[407986168,1772973038466,-500.0,0.00013024,2]
[407986169,1772973038476,-708.34737485,0.00013024,2]
[407986170,1772973038487,-708.34737485,0.00013024,2]
[407986171,1772973038495,-500.0,0.00013024,2]
[407986172,1772973038504,-708.34737485,0.00013024,2]
[407986173,1772973038514,-500.0,0.00013024,2]
[407986174,1772973038524,-708.34737485,0.00013024,2]
[407986175,1772973038533,-708.34737485,0.00013024,2]
[407986176,1772973038542,-500.0,0.00013024,2]
[407986177,1772973038554,-708.34737485,0.00013024,2]
[407986178,1772973038563,-708.34737485,0.00013024,2]
[407986179,1772973038573,-708.34737485,0.00013024,2]
[407986180,1772973038582,-708.34737485,0.00013024,2]
[407986181,1772973038592,-708.34737485,0.00013024,2]
[407986182,1772973038601,-708.34737485,0.00013024,2]
[407986183,1772973038610,-708.34737485,0.00013024,2]
[407986184,1772973038619,-708.34737485,0.00013024,2]
[407986185,1772973038628,-708.34737485,0.00013024,2]
[407986186,1772973038637,-708.34737485,0.00013024,2]
[407986187,1772973038647,-708.34737485,0.00013024,2]
[407986188,1772973038655,-708.34737485,0.00013024,2]
[407986189,1772973038665,-708.34737485,0.00013024,2]
[407986190,1772973038674,-708.34737485,0.00013024,2]
[407986191,1772973038683,-708.34737485,0.00013024,2]
[407986192,1772973038692,-708.34737485,0.00013024,2]
[407986193,1772973038701,-708.34737485,0.00013024,2]
[407986194,1772973038710,-708.34737485,0.00013024,2]
[407986195,1772973038720,-708.34737485,0.00013024,2]
[407986196,1772973038729,-708.34737485,0.00013024,2]
[407986197,1772973038738,-708.34737485,0.00013024,2]
[407986198,1772973038747,-708.34737485,0.00013024,2]
[407986199,1772973038757,-708.34737485,0.00013024,2]
[407986200,1772973038766,-708.34737485,0.00013024,2]
[407986201,1772973038775,-708.34737485,0.00013024,2]
[407986202,1772973038785,-708.34737485,0.00013024,2]
[407986203,1772973038794,-708.34737485,0.00013024,2]
[407986204,1772973038803,-708.34737485,0.00013024,2]
[407986205,1772973038813,-708.34737485,0.00013024,2]
[407986206,1772973038822,-708.34737485,0.00013024,2]
[407986207,1772973038832,-708.34737485,0.00013024,2]
[407986208,1772973038841,-708.34737485,0.00013024,2]
[407986209,1772973038851,-708.34737485,0.00013024,2]
[407986210,1772973038860,-708.34737485,0.00013024,2]
[407986211,1772973038869,-708.34737485,0.00013024,2]
[407986212,1772973038878,-708.34737485,0.00013024,2]
[407986213,1772973038888,-708.34737485,0.00013024,2]
[407986214,1772973038897,-708.34737485,0.00013024,2]
[407986215,1772973038906,-708.34737485,0.00013024,2]
[407986216,1772973038917,-708.34737485,0.00013024,2]
[407986217,1772973038927,-708.34737485,0.00013024,2]
[407986218,1772973038936,-708.34737485,0.00013024,2]
[407986219,1772973038945,-708.34737485,0.00013024,2]
[407986220,1772973038964,-708.34737485,0.00013024,2]
[407986221,1772973038974,-708.34737485,0.00013024,2]
[407986222,1772973038983,-708.34737485,0.00013024,2]
[407986223,1772973038992,-708.34737485,0.00013024,2]
[407986224,1772973039001,-708.34737485,0.00013024,2]
[407986225,1772973039011,-708.34737485,0.00013024,2]
[407986226,1772973039020,-705.81756281,0.00013024,2]
[407986227,1772973039029,-705.81756281,0.00013024,2]
[407986228,1772973039039,-705.81756281,0.00013024,2]
[407986229,1772973039048,-705.81756281,0.00013024,2]
[407986230,1772973039058,-705.81756281,0.00013024,2]
[407986231,1772973039067,-705.81756281,0.00013024,2]
[407986232,1772973039080,-705.81756281,0.00013024,2]
[407986233,1772973039090,-705.81756281,0.00013024,2]
[407986234,1772973039099,-705.81756281,0.00013024,2]
[407986235,1772973039108,-705.81756281,0.00013024,2]
[407986236,1772973039118,-705.81756281,0.00013024,2]
[407986237,1772973039128,-705.81756281,0.00013024,2]
[407986238,1772973039137,-705.81756281,0.00013024,2]
[407986239,1772973039146,-705.81756281,0.00013024,2]
[407986240,1772973039156,-705.81756281,0.00013024,2]
[407986241,1772973039165,-705.81756281,0.00013024,2]
[407986242,1772973039174,-705.81756281,0.00013024,2]
[407986243,1772973039183,-705.81756281,0.00013024,2]
[407986244,1772973039192,-705.81756281,0.00013024,2]
[407986245,1772973039201,-705.81756281,0.00013024,2]
[407986246,1772973039210,-705.81756281,0.00013024,2]
[407986247,1772973039220,-705.81756281,0.00013024,2]
[407986248,1772973039229,-705.81756281,0.00013024,2]
[407986249,1772973039238,-705.81756281,0.00013024,2]
[407986250,1772973039248,-705.81756281,0.00013024,2]
[407986251,1772973039258,-705.81756281,0.00013024,2]
[407986252,1772973039267,-705.81756281,0.00013024,2]
[407986253,1772973039276,-705.81756275,0.00013024,2]
[407986254,1772973039285,-245.39,0.00013024,2]
[407986255,1772973039295,-500.0,0.00013024,2]
[407986256,1772973039304,-588285.8146227,0.00013025,2]
[407986257,1772973039315,-5452.8337711,0.00013025,2]
[407986258,1772973039324,-92167.5701339,0.00013025,2]
[407986259,1772973039333,-287.80347915,0.00013073,2]
[407986260,1772973039342,-504.26526581,0.00013073,2]
[407986261,1772973039352,-500.0,0.00013073,2]
[407986262,1772973039362,-245.39,0.00013298,2]
[407986263,1772973039371,-500.0,0.00013298,2]
[407986264,1772973039380,-176.0,0.00013414,2]
[407986265,1772973039390,-3240.0,0.00013425,2]
[407986266,1772973039400,-152.8,0.00013473,2]
[407986267,1772973039409,-829.0,0.00013479,2]
[407986268,1772973039419,-150.0,0.00013504,2]
[407986269,1772973039431,-150.0,0.00013505,2]
[407986270,1772973039441,-154.791541,0.00013507,2]
[407986271,1772973039451,-313.76587815,0.00013521,2]
[407986272,1772973039460,-245.39,0.00013572,2]
[407986273,1772973039470,-500.0,0.00013572,2]
[407986274,1772973039480,-150.93641976,0.00013573,2]
[407986275,1772973039489,-358.38147752,0.00013573,2]
[407986276,1772973039499,-627.0,0.00013589,2]
[407986277,1772973039508,-177.0,0.00013589,2]
[407986278,1772973039518,-151.0,0.00013608,2]
[407986279,1772973039527,-151.0,0.00013608,2]
[407986280,1772973039537,-151.0,0.00013608,2]
[407986281,1772973039546,-151.0,0.00013608,2]
[407986282,1772973039555,-200.0,0.00013608,2]
[407986283,1772973039565,-151.0,0.00013608,2]
[407986284,1772973039574,-151.0,0.00013608,2]
[407986285,1772973039583,-151.0,0.00013608,2]
[407986286,1772973039592,-151.0,0.00013608,2]
[407986287,1772973039601,-151.0,0.00013608,2]
[407986288,1772973039610,-151.0,0.00013608,2]
[407986289,1772973039619,-151.0,0.00013608,2]
[407986290,1772973039629,-151.42631785,0.00013608,2]
[407986291,1772973039638,-151.0,0.00013608,2]
[407986292,1772973039647,-151.0,0.00013608,2]
[407986293,1772973039656,-151.0,0.00013608,2]
[407986294,1772973039665,-151.0,0.00013608,2]
[407986295,1772973039675,-151.0,0.00013608,2]
[407986296,1772973039684,-151.0,0.00013608,2]
[407986297,1772973039693,-151.0,0.00013608,2]
[407986298,1772973039703,-151.0,0.00013608,2]
[407986299,1772973039712,-151.0,0.00013608,2]
[407986300,1772973039721,-151.0,0.00013608,2]
[407986301,1772973039731,-151.0,0.00013608,2]
[407986302,1772973039741,-151.0,0.00013608,2]
[407986303,1772973039751,-151.0,0.00013608,2]
[407986305,1772973039761,-151.0,0.00013608,2]
[407986307,1772973039771,-151.0,0.00013608,2]
[407986309,1772973039780,-151.0,0.00013608,2]
[407986311,1772973039790,-151.0,0.00013608,2]
[407986312,1772973039799,-151.0,0.00013608,2]
[407986313,1772973039809,-151.0,0.00013608,2]
[407986314,1772973039818,-151.0,0.00013608,2]
[407986315,1772973039827,-151.0,0.00013613,2]
[407986316,1772973039838,-151.0,0.00013613,2]
[407986317,1772973039848,-158.56621885,0.00013615,2]
[407986318,1772973039857,-300.49672196,0.00013615,2]
[407986319,1772973039867,-500.0,0.00013615,2]
[407986320,1772973039876,-606.9534976,0.00013615,2]
[407986321,1772973039886,-1000.0,0.00013621,2]
[407986322,1772973039895,-500.0,0.00013698,2]
[407986323,1772973039905,-500.0,0.00013698,2]
[407986324,1772973039915,-500.0,0.00013698,2]
[407986325,1772973039924,-251.67,0.00013698,2]
[407986326,1772973039933,-500.0,0.00013698,2]
[407986327,1772973039942,-500.0,0.00013698,2]
[407986328,1772973039952,-500.0,0.00013698,2]
[407986329,1772973039962,-500.0,0.00013698,2]
[407986330,1772973039971,-500.0,0.00013698,2]
[407986331,1772973039981,-500.0,0.00013698,2]
[407986332,1772973039990,-500.0,0.00013698,2]
[407986333,1772973040000,-502.45046562,0.00013698,2]
[407986334,1772973040009,-500.0,0.00013698,2]
[407986335,1772973040019,-500.0,0.00013698,2]
[407986336,1772973040028,-500.0,0.00013698,2]
[407986337,1772973040037,-500.0,0.00013698,2]
[407986338,1772973040046,-500.0,0.00013698,2]
[407986339,1772973040055,-500.0,0.00013698,2]
[407986340,1772973040064,-500.0,0.00013698,2]
[407986341,1772973040074,-500.0,0.00013698,2]
[407986342,1772973040085,-500.0,0.00013698,2]
[407986343,1772973040095,-500.0,0.00013698,2]
[407986344,1772973040105,-500.0,0.00013698,2]
[407986345,1772973040115,-500.0,0.00013698,2]
[407986346,1772973040125,-500.0,0.00013698,2]
[407986347,1772973040134,-500.0,0.00013698,2]
[407986350,1772973040144,-500.0,0.00013698,2]
[407986352,1772973040154,-500.0,0.00013698,2]
[407986354,1772973040164,-500.0,0.00013698,2]
[407986355,1772973040173,-500.0,0.00013698,2]
[407986356,1772973040183,-500.0,0.00013698,2]
[407986357,1772973040193,-500.0,0.00013698,2]
[407986358,1772973040202,-500.0,0.00013698,2]
[407986359,1772973040211,-500.0,0.00013698,2]
[407986360,1772973040223,-500.0,0.00013698,2]
[407986361,1772973040233,-500.0,0.00013698,2]
[407986362,1772973040243,-500.0,0.00013698,2]
[407986363,1772973040252,-500.0,0.00013698,2]
[407986364,1772973040261,-500.0,0.00013698,2]
[407986365,1772973040271,-500.0,0.00013698,2]
[407986366,1772973040280,-500.0,0.00013698,2]
[407986367,1772973040290,-522.2,0.00013698,2]
[407986368,1772973040299,-500.0,0.00013698,2]
[407986369,1772973040310,-500.0,0.00013698,2]
[407986370,1772973040320,-500.0,0.00013698,2]
[407986371,1772973040330,-500.0,0.00013698,2]
[407986372,1772973040340,-500.0,0.00013698,2]
[407986373,1772973040350,-500.0,0.00013698,2]
[407986374,1772973040362,-500.0,0.00013698,2]
[407986375,1772973040373,-500.0,0.00013698,2]
[407986376,1772973040385,-500.0,0.00013698,2]
[407986377,1772973040396,-500.0,0.00013698,2]
[407986378,1772973040406,-500.0,0.00013698,2]
[407986379,1772973040415,-500.0,0.00013698,2]
[407986380,1772973040426,-500.0,0.00013698,2]
[407986381,1772973040437,-500.0,0.00013698,2]
[407986382,1772973040447,-500.0,0.00013698,2]
[407986383,1772973040456,-500.0,0.00013698,2]
[407986384,1772973040467,-500.0,0.00013698,2]
[407986385,1772973040477,-417.78031147,0.00013698,2]
[407986386,1772973040487,-17653.93,0.00013699,2]
[407986387,1772973040496,-150.99,0.00013699,2]
[407986388,1772973040506,-2160.9,0.00013699,2]
[407986389,1772973040516,-9999.99,0.00013699,2]
[407986390,1772973040527,-500.0,0.00013699,2]
[407986391,1772973040538,-500.0,0.00013699,2]
[407986392,1772973040547,-500.0,0.00013699,2]
[407986393,1772973040558,-500.0,0.00013699,2]
[407986394,1772973040569,-500.0,0.00013699,2]
[407986395,1772973040580,-500.0,0.00013699,2]
[407986396,1772973040589,-500.0,0.00013699,2]
[407986397,1772973040598,-500.0,0.00013699,2]
[407986398,1772973040609,-174.71534087,0.00013699,2]
[407986399,1772973040619,-6926.13768499,0.000137,2]
[407986400,1772973040628,-6862.37287392,0.000137,2]
[407986401,1772973040637,-1784.7,0.00013769,2]
[407986402,1772973040647,-407.6691287,0.00013827,2]
[407986403,1772973040656,-369.987844,0.00013827,2]
[407986404,1772973040666,-162.46726597,0.00013827,2]
[407986405,1772973040677,-500.0,0.00013827,2]
[407986406,1772973040686,-500.0,0.00013827,2]
[407986407,1772973040697,-201.15901791,0.00013827,2]
[407986408,1772973040708,-500.0,0.00013827,2]
[407986409,1772973040720,-500.0,0.00013827,2]
[407986410,1772973040731,-582.89149439,0.00013827,2]
[407986412,1772973040740,-500.0,0.00013827,2]
[407986415,1772973040946,-245.39,0.00013846,2]
[407986416,1772973040956,-500.0,0.00013846,2]
[407986418,1772973040965,-1673.25379173,0.00013921,2]
[407986420,1772973040975,-158.01,0.00014,2]
[407986421,1772973040985,-250.0,0.0001404,2]
[407986422,1772973040994,-299.8335932,0.0001404,2]
[407986423,1772973041003,-250.0,0.0001404,2]
[407986424,1772973041013,-1784.7,0.00014089,2]
[407986425,1772973041023,-245.41,0.0001412,2]
[407986426,1772973041032,-255.0,0.0001413,2]
[407986427,1772973041042,-1500.0,0.00014168,2]
[407986428,1772973041052,-420.0,0.00014174,2]
[407986429,1772973041061,-420.0,0.00014174,2]
[407986430,1772973041071,-152.8,0.00014182,2]
[407986431,1772973041080,-1680.0,0.00014216,2]